fUST/lending_fUST_20250423
["ID","MTS","AMOUNT","RATE_DAILY","PERIOD"]
[358714541,1745400641702,-500.0,0.00020314,2]
[358714543,1745400641712,-500.0,0.00020314,2]
[358714545,1745400641721,-500.0,0.00020314,2]
[358714547,1745400641731,-500.0,0.00020314,2]
[358714549,1745400641741,-500.0,0.00020314,2]
[358714551,1745400641750,-500.0,0.00020314,2]
[358714553,1745400641760,-500.0,0.00020314,2]
[358714555,1745400641770,-500.0,0.00020314,2]
[358714557,1745400641780,-502.61096598,0.00020314,2]
[358714574,1745400641924,-500.0,0.00020314,2]
[358714576,1745400641953,-500.0,0.00020314,2]
[358714578,1745400641963,-500.0,0.00020314,2]
[358714580,1745400641972,-3948.03,0.00020314,2]
[358714582,1745400641982,-500.0,0.00020314,2]
[358714584,1745400641993,-556.14513671,0.00020314,2]
[358714587,1745400642002,-500.0,0.00020314,2]
[358714588,1745400642012,-570.49,0.00020314,2]
[358714590,1745400642022,-500.0,0.00020314,2]
[358714592,1745400642032,-500.0,0.00020314,2]
[358714594,1745400642041,-500.0,0.00020314,2]
[358714596,1745400642051,-500.0,0.00020314,2]
[358714598,1745400642061,-121.37453353,0.00020314,2]
[358714601,1745400642079,-464.96767922,0.00020314,2]
[358714603,1745400642088,-500.0,0.00020314,2]
[358714605,1745400642098,-500.0,0.00020315,2]
[358714607,1745400642107,-506.22686415,0.00020315,2]
[358714609,1745400642117,-500.0,0.00020315,2]
[358714611,1745400642127,-500.0,0.00020315,2]
[358714613,1745400642136,-500.0,0.00020315,2]
[358714615,1745400642145,-500.0,0.00020315,2]
[358714617,1745400642155,-500.0,0.00020315,2]
[358714619,1745400642164,-500.0,0.00020315,2]
[358714621,1745400642174,-500.0,0.00020315,2]
[358714623,1745400642183,-570.53,0.00020315,2]
[358714625,1745400642192,-504.08342161,0.00020315,2]
[358714627,1745400642202,-500.0,0.00020315,2]
[358714629,1745400642211,-500.0,0.00020315,2]
[358714631,1745400642220,-500.0,0.00020315,2]
[358714633,1745400642230,-500.0,0.00020315,2]
[358714635,1745400642240,-658.54,0.00020315,2]
[358714637,1745400642250,-500.0,0.00020315,2]
[358714639,1745400642259,-500.0,0.00020315,2]
[358714641,1745400642269,-649.6,0.00020315,2]
[358714643,1745400642278,-591.05260331,0.00020315,2]
[358714645,1745400642288,-550.66120759,0.00020315,2]
[358714647,1745400642298,-500.0,0.00020315,2]
[358714649,1745400642308,-500.0,0.00020315,2]
[358714651,1745400642319,-645.66,0.00020315,2]
[358714654,1745400642328,-503.24356776,0.00020315,2]
[358714656,1745400642338,-500.0,0.00020315,2]
[358714659,1745400642347,-500.0,0.00020315,2]
[358714662,1745400642356,-502.6369472,0.00020315,2]
[358714665,1745400642365,-500.0,0.00020315,2]
[358714668,1745400642375,-500.0,0.00020315,2]
[358714671,1745400642384,-500.0,0.00020315,2]
[358714675,1745400642393,-500.0,0.00020315,2]
[358714678,1745400642402,-500.0,0.00020315,2]
[358714681,1745400642411,-500.0,0.00020315,2]
[358714685,1745400642421,-500.0,0.00020315,2]
[358714687,1745400642430,-500.0,0.00020315,2]
[358714689,1745400642440,-500.0,0.00020315,2]
[358714691,1745400642449,-17.28629001,0.00020315,2]
[358714693,1745400642461,-482.71370999,0.00020315,2]
[358714695,1745400642471,-500.0,0.00020315,2]
[358714697,1745400642480,-500.0,0.00020315,2]
[358714699,1745400642489,-500.0,0.00020315,2]
[358714701,1745400642499,-500.0,0.00020315,2]
[358714704,1745400642508,-500.0,0.00020315,2]
[358714707,1745400642518,-631.39348198,0.00020315,2]
[358714709,1745400642527,-500.0,0.00020315,2]
[358714712,1745400642536,-307.10742571,0.00020315,2]
[358714714,1745400642546,-500.0,0.00020315,2]
[358714715,1745400642555,-500.0,0.00020315,2]
[358714717,1745400642565,-500.0,0.00020315,2]
[358714719,1745400642575,-144.13247212,0.00020315,2]
[358714722,1745400642587,-355.86752788,0.00020315,2]
[358714724,1745400642596,-500.0,0.00020315,2]
[358714726,1745400642606,-500.0,0.00020315,2]
[358714728,1745400642615,-500.0,0.00020315,2]
[358714730,1745400642624,-500.0,0.00020315,2]
[358714732,1745400642633,-311.2180585,0.00020315,2]
[358714734,1745400642642,-501.53787113,0.00020315,2]
[358714736,1745400642651,-500.0,0.00020315,2]
[358714738,1745400642661,-152.64158951,0.00020315,2]
[358714740,1745400642669,-500.0,0.00020315,2]
[358714741,1745400642679,-500.0,0.00020315,2]
[358714744,1745400642689,-500.0,0.00020315,2]
[358714745,1745400642698,-567.50688699,0.00020315,2]
[358714747,1745400642708,-500.0,0.00020315,2]
[358714749,1745400642717,-500.0,0.00020315,2]
[358714751,1745400642727,-500.0,0.00020315,2]
[358714753,1745400642737,-500.0,0.00020315,2]
[358714755,1745400642746,-501.51361537,0.00020315,2]
[358714757,1745400642757,-81.50117757,0.00020315,2]
[358714760,1745400642769,-421.28066164,0.00020315,2]
[358714762,1745400642779,-500.0,0.00020315,2]
[358714764,1745400642788,-500.0,0.00020315,2]
[358714766,1745400642798,-500.0,0.00020315,2]
[358714768,1745400642808,-501.65708635,0.00020315,2]
[358714770,1745400642818,-500.0,0.00020315,2]
[358714772,1745400642828,-500.0,0.00020315,2]
[358714774,1745400642837,-500.0,0.00020315,2]
[358714776,1745400642847,-500.0,0.00020315,2]
[358714778,1745400642857,-519.29,0.00020315,2]
[358714780,1745400642866,-762.57,0.00020315,2]
[358714782,1745400642875,-500.0,0.00020315,2]
[358714784,1745400642885,-500.0,0.00020315,2]
[358714786,1745400642894,-636.57618894,0.00020315,2]
[358714788,1745400642904,-1865.33,0.00020315,2]
[358714790,1745400642913,-589.27,0.00020315,2]
[358714791,1745400642923,-500.0,0.00020315,2]
[358714794,1745400642933,-604.0,0.00020317,2]
[358714796,1745400642943,-500.0,0.00020317,2]
[358714798,1745400642952,-500.0,0.00020317,2]
[358714800,1745400642961,-500.0,0.00020317,2]
[358714801,1745400642971,-500.0,0.00020317,2]
[358714804,1745400642980,-636.42,0.00020317,2]
[358714806,1745400642990,-500.0,0.00020317,2]
[358714808,1745400643000,-500.0,0.00020317,2]
[358714809,1745400643010,-506.70808895,0.00020317,2]
[358714811,1745400643020,-500.0,0.00020317,2]
[358714813,1745400643030,-628.11,0.00020317,2]
[358714816,1745400643039,-500.0,0.00020317,2]
[358714818,1745400643049,-500.0,0.00020317,2]
[358714820,1745400643059,-500.0,0.00020317,2]
[358714822,1745400643068,-500.0,0.00020317,2]
[358714823,1745400643078,-500.0,0.00020317,2]
[358714825,1745400643088,-500.0,0.00020317,2]
[358714827,1745400643098,-500.0,0.00020317,2]
[358714829,1745400643107,-558.35976085,0.00020317,2]
[358714831,1745400643116,-500.0,0.00020317,2]
[358714833,1745400643126,-500.0,0.00020317,2]
[358714835,1745400643136,-582.21,0.00020317,2]
[358714837,1745400643145,-500.0,0.00020317,2]
[358714838,1745400643154,-500.0,0.00020317,2]
[358714839,1745400643164,-500.0,0.00020317,2]
[358714840,1745400643173,-500.0,0.00020317,2]
[358714841,1745400643182,-500.0,0.00020317,2]
[358714842,1745400643192,-505.2679877,0.00020317,2]
[358714843,1745400643201,-500.0,0.00020317,2]
[358714844,1745400643211,-500.0,0.00020317,2]
[358714845,1745400643220,-386.36876372,0.00020317,2]
[358714846,1745400643229,-500.0,0.00020317,2]
[358714847,1745400643239,-500.0,0.00020317,2]
[358714848,1745400643250,-500.0,0.00020317,2]
[358714849,1745400643260,-500.0,0.00020317,2]
[358714850,1745400643272,-500.0,0.00020317,2]
[358714851,1745400643281,-151.0,0.00020317,2]
[358714852,1745400643291,-500.0,0.00020317,2]
[358714853,1745400643303,-151.0,0.00020317,2]
[358714854,1745400643313,-151.0,0.00020317,2]
[358714855,1745400643322,-500.0,0.00020317,2]
[358714856,1745400643331,-151.344921,0.00020317,2]
[358714857,1745400643341,-151.0,0.00020317,2]
[358714859,1745400643351,-151.0,0.00020317,2]
[358714861,1745400643360,-501.07666719,0.00020317,2]
[358714863,1745400643371,-500.0,0.00020317,2]
[358714865,1745400643381,-500.0,0.00020317,2]
[358714867,1745400643390,-151.0,0.00020317,2]
[358714869,1745400643399,-151.0,0.00020317,2]
[358714871,1745400643409,-500.0,0.00020317,2]
[358714873,1745400643418,-151.0,0.00020317,2]
[358714875,1745400643428,-516.77747152,0.00020317,2]
[358714877,1745400643437,-151.0,0.00020317,2]
[358714879,1745400643447,-500.0,0.00020317,2]
[358714881,1745400643456,-151.0,0.00020317,2]
[358714883,1745400643467,-500.0,0.00020317,2]
[358714885,1745400643476,-151.0,0.00020317,2]
[358714887,1745400643485,-500.0,0.00020317,2]
[358714889,1745400643494,-500.0,0.00020317,2]
[358714891,1745400643505,-618.9,0.00020317,2]
[358714893,1745400643514,-500.0,0.00020317,2]
[358714895,1745400643525,-500.0,0.00020317,2]
[358714897,1745400643533,-151.0,0.00020317,2]
[358714899,1745400643543,-500.0,0.00020317,2]
[358714901,1745400643553,-500.0,0.00020317,2]
[358714903,1745400643563,-500.0,0.00020317,2]
[358714905,1745400643573,-500.0,0.00020317,2]
[358714907,1745400643582,-500.0,0.00020317,2]
[358714909,1745400643592,-151.0,0.00020317,2]
[358714911,1745400643601,-500.0,0.00020317,2]
[358714913,1745400643610,-500.0,0.00020317,2]
[358714915,1745400643619,-500.0,0.00020317,2]
[358714917,1745400643629,-500.0,0.00020317,2]
[358714919,1745400643638,-151.0,0.00020317,2]
[358714921,1745400643649,-151.0,0.00020317,2]
[358714923,1745400643658,-500.0,0.00020318,2]
[358714925,1745400643668,-500.0,0.00020318,2]
[358714926,1745400643677,-545.01,0.00020318,2]
[358714928,1745400643686,-500.0,0.00020318,2]
[358714930,1745400643696,-500.0,0.00020318,2]
[358714933,1745400643705,-545.67,0.00020318,2]
[358714934,1745400643715,-510.44106176,0.00020318,2]
[358714936,1745400643724,-500.0,0.00020318,2]
[358714938,1745400643734,-500.0,0.00020318,2]
[358714940,1745400643743,-500.0,0.00020318,2]
[358714942,1745400643752,-500.0,0.00020318,2]
[358714944,1745400643762,-571.05,0.00020318,2]
[358714946,1745400643772,-500.0,0.00020318,2]
[358714948,1745400643781,-508.68358418,0.00020318,2]
[358714950,1745400643791,-500.0,0.00020318,2]
[358714952,1745400643802,-510.85731941,0.00020318,2]
[358714955,1745400643812,-500.0,0.00020318,2]
[358714956,1745400643821,-500.0,0.00020318,2]
[358714958,1745400643831,-500.0,0.00020318,2]
[358714960,1745400643840,-500.0,0.00020318,2]
[358714962,1745400643849,-500.0,0.00020318,2]
[358714964,1745400643859,-580.41,0.00020318,2]
[358714967,1745400643872,-500.0,0.00020318,2]
[358714969,1745400643882,-500.0,0.00020318,2]
[358714971,1745400643892,-1043.91,0.00020318,2]
[358714973,1745400643901,-131.46654919,0.00020318,2]
[358715089,1745400645234,-500.0,0.00020037,2]
[358715101,1745400645343,-359.95922583,0.00020037,2]
[358715103,1745400645360,-140.53570546,0.00020037,2]
[358715105,1745400645371,-500.0,0.00020037,2]
[358715108,1745400645382,-505.91150199,0.00020041,2]
[358715110,1745400645392,-500.0,0.00020041,2]
[358715112,1745400645404,-500.0,0.00020043,2]
[358715114,1745400645414,-500.0,0.00020311,2]
[358715116,1745400645423,-500.0,0.00020315,2]
[358715118,1745400645433,-500.0,0.00020317,2]
[358715120,1745400645443,-368.53345081,0.00020318,2]
[358715122,1745400645452,-500.0,0.00020318,2]
[358715124,1745400645462,-500.0,0.00020318,2]
[358715126,1745400645472,-500.0,0.00020318,2]
[358715128,1745400645482,-500.0,0.00020318,2]
[358715130,1745400645492,-500.0,0.00020318,2]
[358715132,1745400645502,-500.0,0.00020318,2]
[358715134,1745400645512,-500.0,0.00020318,2]
[358715136,1745400645523,-500.0,0.00020318,2]
[358715138,1745400645533,-84.31193955,0.00020318,2]
[358715142,1745400645563,-276.80360396,0.00020318,2]
[358715145,1745400645577,-138.88445649,0.00020318,2]
[358715147,1745400645588,-500.0,0.00020318,2]
[358715149,1745400645598,-527.42,0.00020318,2]
[358715151,1745400645608,-500.0,0.00020318,2]
[358715153,1745400645617,-500.0,0.00020318,2]
[358715155,1745400645627,-565.04,0.00020318,2]
[358715157,1745400645637,-551.65,0.00020318,2]
[358715159,1745400645647,-500.0,0.00020318,2]
[358715161,1745400645656,-500.0,0.00020318,2]
[358715163,1745400645666,-500.0,0.00020318,2]
[358715165,1745400645676,-500.0,0.00020318,2]
[358715167,1745400645686,-231.30392,0.00020318,2]
[358715170,1745400645695,-500.0,0.00020318,2]
[358715172,1745400645705,-500.0,0.00020318,2]
[358715174,1745400645715,-479.79868866,0.00020318,2]
[358715176,1745400645725,-500.0,0.00020318,2]
[358715178,1745400645735,-500.0,0.00020318,2]
[358715180,1745400645745,-500.0,0.00020318,2]
[358715182,1745400645754,-500.0,0.00020318,2]
[358715184,1745400645764,-500.0,0.00020318,2]
[358715186,1745400645775,-500.0,0.00020318,2]
[358715188,1745400645784,-500.0,0.00020318,2]
[358715190,1745400645793,-500.0,0.00020318,2]
[358715192,1745400645803,-500.0,0.00020318,2]
[358715194,1745400645812,-500.0,0.00020318,2]
[358715196,1745400645821,-500.0,0.00020318,2]
[358715198,1745400645831,-500.0,0.00020318,2]
[358715200,1745400645843,-500.0,0.00020318,2]
[358715202,1745400645852,-394.08546038,0.00020318,2]
[358715204,1745400645862,-500.0,0.00020318,2]
[358715206,1745400645872,-500.0,0.00020318,2]
[358715208,1745400645882,-500.0,0.00020318,2]
[358715210,1745400645894,-500.0,0.00020318,2]
[358715212,1745400645903,-500.0,0.00020318,2]
[358715214,1745400645913,-500.0,0.00020318,2]
[358715216,1745400645923,-500.0,0.00020318,2]
[358715218,1745400645934,-500.0,0.00020318,2]
[358715220,1745400645944,-500.0,0.00020318,2]
[358715222,1745400645954,-500.0,0.00020318,2]
[358715224,1745400645964,-500.0,0.00020318,2]
[358715226,1745400645974,-548.99,0.00020318,2]
[358715228,1745400645983,-500.0,0.00020318,2]
[358715231,1745400645995,-500.0,0.00020318,2]
[358715233,1745400646005,-500.0,0.00020318,2]
[358715235,1745400646014,-500.0,0.00020318,2]
[358715236,1745400646024,-500.0,0.00020318,2]
[358715237,1745400646034,-500.0,0.00020318,2]
[358715239,1745400646043,-500.0,0.00020318,2]
[358715240,1745400646053,-500.0,0.00020318,2]
[358715241,1745400646063,-500.0,0.00020318,2]
[358715242,1745400646073,-505.15845811,0.00020318,2]
[358715243,1745400646082,-237.625624,0.00020318,2]
[358715244,1745400646092,-237.625624,0.00020318,2]
[358715245,1745400646102,-500.0,0.00020318,2]
[358715246,1745400646111,-500.0,0.00020318,2]
[358715247,1745400646121,-500.0,0.00020318,2]
[358715248,1745400646130,-506.62343795,0.00020318,2]
[358715250,1745400646140,-255.245604,0.00020318,2]
[358715252,1745400646149,-500.0,0.00020318,2]
[358715254,1745400646159,-500.0,0.00020318,2]
[358715256,1745400646169,-520.96254655,0.00020318,2]
[358715258,1745400646179,-503.99911441,0.00020318,2]
[358715260,1745400646188,-319.47714048,0.00020318,2]
[358715262,1745400646198,-500.0,0.00020318,2]
[358715264,1745400646209,-500.0,0.00020318,2]
[358715266,1745400646218,-500.0,0.00020318,2]
[358715267,1745400646228,-500.0,0.00020318,2]
[358715268,1745400646238,-500.0,0.00020318,2]
[358715269,1745400646247,-500.0,0.00020318,2]
[358715270,1745400646258,-500.0,0.00020318,2]
[358715271,1745400646267,-202.12451825,0.00020318,2]
[358715272,1745400646278,-500.0,0.00020318,2]
[358715273,1745400646288,-500.0,0.00020318,2]
[358715274,1745400646300,-151.0,0.00020318,2]
[358715275,1745400646311,-500.0,0.00020318,2]
[358715276,1745400646320,-500.0,0.00020318,2]
[358715277,1745400646330,-500.0,0.00020318,2]
[358715278,1745400646339,-151.0,0.00020318,2]
[358715279,1745400646350,-349.4126009,0.00020318,2]
[358715280,1745400646359,-436.97169291,0.00020318,2]
[358715281,1745400646369,-500.80478075,0.00020318,2]
[358715282,1745400646380,-151.0,0.00020318,2]
[358715283,1745400646389,-500.0,0.00020318,2]
[358715284,1745400646399,-515.1064954,0.00020318,2]
[358715285,1745400646409,-500.0,0.00020318,2]
[358715286,1745400646419,-500.0,0.00020318,2]
[358715287,1745400646428,-511.31671624,0.00020318,2]
[358715288,1745400646438,-500.0,0.00020318,2]
[358715289,1745400646447,-500.0,0.00020318,2]
[358715290,1745400646457,-500.0,0.00020318,2]
[358715291,1745400646466,-151.0,0.00020318,2]
[358715292,1745400646477,-500.0,0.00020318,2]
[358715293,1745400646487,-500.0,0.00020318,2]
[358715294,1745400646496,-500.0,0.00020318,2]
[358715295,1745400646506,-151.0,0.00020318,2]
[358715296,1745400646515,-500.0,0.00020318,2]
[358715297,1745400646526,-502.51889699,0.00020318,2]
[358715298,1745400646535,-500.0,0.00020318,2]
[358715299,1745400646545,-500.0,0.00020318,2]
[358715300,1745400646555,-514.91450094,0.00020318,2]
[358715301,1745400646564,-502.80788592,0.00020318,2]
[358715302,1745400646574,-500.0,0.00020318,2]
[358715303,1745400646583,-500.0,0.00020318,2]
[358715304,1745400646593,-500.0,0.00020318,2]
[358715305,1745400646603,-500.0,0.00020318,2]
[358715306,1745400646612,-500.0,0.00020318,2]
[358715307,1745400646622,-500.0,0.00020318,2]
[358715308,1745400646632,-501.94956001,0.00020318,2]
[358715309,1745400646641,-500.0,0.00020318,2]
[358715310,1745400646651,-723.12,0.00020318,2]
[358715311,1745400646661,-500.0,0.00020318,2]
[358715312,1745400646675,-500.0,0.00020318,2]
[358715315,1745400646690,-500.0,0.00020318,2]
[358715317,1745400646705,-502.89246489,0.00020318,2]
[358715320,1745400646720,-500.0,0.00020318,2]
[358715322,1745400646732,-1000.0,0.00020318,2]
[358715324,1745400646744,-500.0,0.00020318,2]
[358715325,1745400646758,-500.0,0.00020318,2]
[358715326,1745400646772,-500.0,0.00020318,2]
[358715327,1745400646786,-500.0,0.00020318,2]
[358715328,1745400646801,-500.0,0.00020318,2]
[358715329,1745400646813,-500.0,0.00020318,2]
[358715330,1745400646827,-500.0,0.00020318,2]
[358715331,1745400646842,-505.50201619,0.00020318,2]
[358715332,1745400646856,-500.0,0.00020318,2]
[358715333,1745400646868,-500.0,0.00020318,2]
[358715334,1745400646889,-502.00845907,0.00020318,2]
[358715335,1745400646914,-507.4769315,0.00020318,2]
[358715336,1745400646932,-500.0,0.00020318,2]
[358715337,1745400646951,-500.0,0.00020318,2]
[358715339,1745400646965,-500.0,0.00020318,2]
[358715340,1745400646980,-500.0,0.00020318,2]
[358715342,1745400646991,-243.0912456,0.00020318,2]
[358715343,1745400647005,-500.0,0.00020318,2]
[358715344,1745400647018,-500.0,0.00020318,2]
[358715345,1745400647033,-310.53552713,0.00020318,2]
[358715346,1745400647046,-500.0,0.00020318,2]
[358715347,1745400647062,-508.86669494,0.00020318,2]
[358715348,1745400647076,-500.0,0.00020318,2]
[358715349,1745400647092,-502.6065497,0.00020318,2]
[358715350,1745400647108,-500.0,0.00020318,2]
[358715351,1745400647123,-500.0,0.00020318,2]
[358715352,1745400647135,-500.0,0.00020318,2]
[358715353,1745400647147,-624.65,0.00020318,2]
[358715354,1745400647158,-500.0,0.00020318,2]
[358715355,1745400647169,-500.0,0.00020318,2]
[358715356,1745400647183,-500.0,0.00020318,2]
[358715357,1745400647198,-500.0,0.00020318,2]
[358715358,1745400647211,-500.0,0.00020318,2]
[358715359,1745400647222,-503.78712486,0.00020318,2]
[358715360,1745400647235,-500.0,0.00020318,2]
[358715361,1745400647247,-500.0,0.00020318,2]
[358715362,1745400647263,-685.28,0.00020318,2]
[358715363,1745400647276,-500.0,0.00020318,2]
[358715364,1745400647287,-239.02597242,0.00020318,2]
[358715365,1745400647300,-500.0,0.00020318,2]
[358715366,1745400647312,-500.0,0.00020318,2]
[358715367,1745400647324,-500.0,0.00020319,2]
[358715368,1745400647338,-500.0,0.00020416,2]
[358715369,1745400647351,-500.0,0.00020416,2]
[358715370,1745400647364,-500.0,0.00020416,2]
[358715371,1745400647378,-500.0,0.00020416,2]
[358715372,1745400647398,-500.0,0.00020416,2]
[358715373,1745400647412,-2037.28,0.00020416,2]
[358715374,1745400647425,-500.0,0.00020416,2]
[358715375,1745400647438,-500.0,0.00020416,2]
[358715376,1745400647451,-500.0,0.00020416,2]
[358715377,1745400647465,-1934.01,0.00020416,2]
[358715378,1745400647477,-5978.58,0.00020416,2]
[358715379,1745400647490,-7184.07,0.00020416,2]
[358715380,1745400647503,-10399.8774074,0.00020436,2]
[358715381,1745400647516,-271.374,0.000205,2]
[358715382,1745400647529,-151.0,0.00020521,2]
[358715383,1745400647542,-151.0,0.00020521,2]
[358715384,1745400647554,-250.0,0.00020528,2]
[358715385,1745400647566,-500.0,0.00020585,2]
[358715386,1745400647579,-500.0,0.00020585,2]
[358715387,1745400647591,-500.0,0.00020586,2]
[358715388,1745400647604,-500.0,0.00020586,2]
[358715389,1745400647616,-2342.68,0.00020586,2]
[358715390,1745400647628,-500.0,0.00020586,2]
[358715391,1745400647640,-500.0,0.00020586,2]
[358715392,1745400647652,-7333.18,0.00020586,2]
[358715393,1745400647665,-500.0,0.00020586,2]
[358715394,1745400647677,-500.0,0.00020586,2]
[358715395,1745400647688,-500.0,0.00020586,2]
[358715396,1745400647700,-151.0,0.00020586,2]
[358715397,1745400647712,-3125.36,0.00020587,2]
[358715398,1745400647724,-500.0,0.00020587,2]
[358715399,1745400647736,-500.0,0.00020587,2]
[358715400,1745400647748,-1530.8,0.00020587,2]
[358715401,1745400647760,-500.0,0.00020587,2]
[358715402,1745400647772,-9469.11,0.00020587,2]
[358715403,1745400647784,-500.0,0.00020587,2]
[358715404,1745400647795,-500.0,0.00020587,2]
[358715405,1745400647807,-500.0,0.00020587,2]
[358715406,1745400647819,-500.0,0.00020587,2]
[358715407,1745400647831,-4530.67,0.00020587,2]
[358715408,1745400647844,-795.51,0.00020587,2]
[358715409,1745400647862,-500.0,0.00020587,2]
[358715410,1745400647876,-500.0,0.00020587,2]
[358715411,1745400647889,-500.0,0.00020588,2]
[358715412,1745400647902,-651.53,0.00020588,2]
[358715413,1745400647915,-500.0,0.00020588,2]
[358715414,1745400647928,-500.0,0.00020588,2]
[358715415,1745400647940,-995.49,0.00020588,2]
[358715416,1745400647952,-500.0,0.00020588,2]
[358715417,1745400647965,-1422.43,0.00020588,2]
[358715418,1745400647977,-500.0,0.00020588,2]
[358715419,1745400647990,-151.0,0.00020588,2]
[358715420,1745400648002,-540.4,0.00020588,2]
[358715421,1745400648014,-1264.47,0.00020588,2]
[358715422,1745400648027,-500.11,0.00020588,2]
[358715423,1745400648040,-500.0,0.00020588,2]
[358715424,1745400648052,-500.0,0.00020588,2]
[358715425,1745400648065,-500.0,0.00020588,2]
[358715426,1745400648078,-151.0,0.00020588,2]
[358715427,1745400648092,-500.0,0.00020588,2]
[358715428,1745400648104,-500.0,0.00020588,2]
[358715429,1745400648115,-536.72,0.00020588,2]
[358715430,1745400648124,-500.0,0.00020588,2]
[358715431,1745400648135,-151.0,0.00020588,2]
[358715432,1745400648145,-500.0,0.00020588,2]
[358715433,1745400648156,-500.0,0.00020588,2]
[358715434,1745400648165,-681.92,0.00020588,2]
[358715435,1745400648174,-500.0,0.00020588,2]
[358715436,1745400648184,-500.0,0.00020588,2]
[358715437,1745400648194,-151.0,0.00020588,2]
[358715438,1745400648204,-500.0,0.00020588,2]
[358715439,1745400648214,-151.0,0.00020588,2]
[358715440,1745400648223,-151.0,0.00020588,2]
[358715441,1745400648233,-151.0,0.00020588,2]
[358715442,1745400648243,-500.0,0.00020588,2]
[358715443,1745400648252,-356.57793241,0.00020588,2]
[358715444,1745400648262,-500.0,0.00020588,2]
[358715445,1745400648272,-500.0,0.00020588,2]
[358715446,1745400648282,-500.0,0.00020588,2]
[358715447,1745400648292,-500.0,0.00020588,2]
[358715448,1745400648307,-151.0,0.00020588,2]
[358715449,1745400648317,-500.0,0.00020588,2]
[358715450,1745400648327,-500.0,0.00020588,2]
[358715451,1745400648339,-260.62771354,0.00020588,2]
[358715452,1745400648349,-3948.03,0.00020588,2]
[358715453,1745400648360,-500.0,0.00020588,2]
[358715454,1745400648371,-151.0,0.00020588,2]
[358715455,1745400648382,-500.0,0.00020588,2]
[358715456,1745400648393,-570.49,0.00020588,2]
[358715457,1745400648403,-500.0,0.00020588,2]
[358715458,1745400648414,-500.0,0.00020588,2]
[358715459,1745400648425,-500.0,0.00020588,2]
[358715460,1745400648435,-500.0,0.00020588,2]
[358715461,1745400648445,-500.0,0.00020589,2]
[358715462,1745400648455,-349.86247827,0.00020589,2]
[358715463,1745400648465,-500.0,0.00020589,2]
[358715464,1745400648791,-299.65,0.00020589,2]
[358715465,1745400648817,-500.0,0.00020589,2]
[358715466,1745400648836,-658.54,0.00020589,2]
[358715467,1745400648847,-500.0,0.00020589,2]
[358715468,1745400648856,-490.79,0.00020589,2]
[358715469,1745400648866,-349.74586038,0.00020589,2]
[358715470,1745400648876,-645.66,0.00020589,2]
[358715471,1745400648885,-500.0,0.00020589,2]
[358715472,1745400648895,-500.0,0.00020589,2]
[358715473,1745400648904,-500.0,0.00020589,2]
[358715474,1745400648914,-502.46,0.00020589,2]
[358715475,1745400648924,-500.0,0.00020589,2]
[358715476,1745400648933,-500.0,0.00020589,2]